Cogmind - Beta 13 @@@ ROGUE MODE // 2024.07.10 @ 09:28:51 Player: gigi283 Result: Destroyed by S-10 Pest with Light Assault Rifle Performance ------------- Evolutions (0) 0 Regions Visited (2) 400 Robots Destroyed (9) 45 Value Destroyed (164) 164 Prototype IDs (0) 0 Alien Tech Used (0) 0 Bonus (0) 0 TOTAL SCORE: 609 Bonus ------- None Cogmind --------- Core Integrity 0/250 Matter 300/300 Energy 100/100 System Corruption 0% Temperature Cool (0) Movement Core (400) Ox7 Location -10/Mines Parts ------- > --- POWER (1) -------- (None) > --- PROPULSION (2) --- (None) > --- UTILITY (2) ------ Large Storage Unit Signal Interpreter > --- WEAPON (2) ------- Hammer > --- INVENTORY (15) --- Light Treads Wheel Wheel Wheel Heat Sink Huge Storage Unit Grenade Launcher Mining Laser Peak State ------------ > --- POWER ------------ Ion Engine > --- PROPULSION ------- Wheel Compact Wheel > --- UTILITY ---------- Small Storage Unit Large Storage Unit > --- WEAPON ----------- Medium Laser Assault Rifle > --- INVENTORY -------- Light Ion Engine Light Treads Light Treads Grenade Launcher [Rating: 7] Favorites ----------- Power Ion Engine Engine Ion Engine Propulsion Wheel Treads Light Treads Wheel Wheel Utility Large Storage Unit Storage Large Storage Unit Processor Signal Interpreter Weapon Medium Laser Energy Gun Medium Laser Ballistic Gun Assault Rifle Impact Weapon Hammer Build | -11 -10 -10 ------- Run | Yrd Mat Min Slots Evolved . | . . . Power . | . . . Propulsion . | . . . Utility . | . . . Weapon . | . . . Parts Attached 15 | 6 4 5 Power 3 | 1 1 1 Engine 3 | 1 1 1 Core . | . . . Reactor . | . . . Propulsion 6 | 2 1 3 Treads 1 | . . 1 Leg . | . . . Wheel 5 | 2 1 2 Hover . | . . . Flight . | . . . Utility 3 | 1 2 . Device . | . . . Storage 2 | 1 1 . Processor 1 | . 1 . Hackware . | . . . Protection . | . . . Artifact . | . . . Weapon 3 | 2 . 1 Energy Gun 1 | 1 . . Energy Cannon . | . . . Ballistic Gun 1 | 1 . . Ballistic Cannon . | . . . Launcher . | . . . Special Weapon . | . . . Impact Weapon 1 | . . 1 Slashing Weapon . | . . . Piercing Weapon . | . . . Special Melee Weapon . | . . . Unidentified Prototypes . | . . . Parts Lost 6 | . . 6 Power 2 | . . 2 Propulsion 2 | . . 2 Utility . | . . . Weapon 2 | . . 2 Highest Loss Streak 6 | . . 6 To Critical Strikes . | . . . Average Slot Usage (%) 97 | . 97 96 Engine 14 | . 14 14 Wheel 26 | . 28 24 Storage 14 | . 14 14 Processor 12 | . 12 14 Energy Gun 13 | . 14 13 Ballistic Gun 13 | . 14 12 Naked Turns . | . . . Heaviest Build 29 | 14 29 29 Greatest Support 26 | 26 26 26 Greatest Overweight (x) 8 | 4 1 8 Average Overweight (x) . | 1 . 1 Largest Inventory Capacity 15 | 8 15 15 Average Capacity 14 | 7 14 15 Most Carried 9 | 5 7 9 Average Carried 6 | 2 4 8 Final Capacity 15 | 8 15 15 Final Carried 8 | 3 7 8 Class Distribution -------------------- 100% | Mutant Dominant Class ---------------- Mutant | -10/Materials Mutant | -10/Mines Resources | -11 -10 -10 ----------- Run | Yrd Mat Min Matter Collected 412 | 231 135 46 Remotely . | . . . Salvage Created 275 | . 182 93 Parts 13 | . 8 5 Haulers Intercepted . | . . . Recyclers Shooed 1 | . 1 . Parts Field Recycled . | . . . Retrieved Matter . | . . . Parts Self-Destructed . | . . . Prevented . | . . . Kills | -11 -10 -10 ------- Run | Yrd Mat Min Combat Hostiles Destroyed 6 | . 5 1 Guns 5 | . 4 1 Classes Destroyed 5 | . 3 2 Worker 2 | . . 2 Recycler 1 | . 1 . Swarmer 3 | . 3 . Grunt 2 | . 2 . Sentry 1 | . . 1 Best Kill Streak 4 | . 4 2 Combat Bots Only 3 | . 3 1 Max Kills in Single Turn 2 | . 2 1 Gunslinging 1 | . 1 . Exploded . | . . . Melee . | . . . Uniques/NPCs Destroyed . | . . . Combat | -11 -10 -10 -------- Run | Yrd Mat Min Hostile Shots Fired 93 | . 21 72 Missed 15 | . 4 11 Damage Taken 870 | . 186 684 Core 254 | . 54 200 Absorbed by Shields . | . . . Core Remaining (%) 100 | 100 . . Volleys Fired 33 | . 22 11 Largest 2 | . 2 2 Hottest 70 | . 70 70 Shots Fired 62 | . 44 18 Gun 62 | . 44 18 Cannon . | . . . Launcher . | . . . Special . | . . . Kinetic 29 | . 22 7 Thermal 33 | . 22 11 Explosive . | . . . Electromagnetic . | . . . Robot Hit Streak 17 | . 17 7 Robot Miss Streak 6 | . 6 4 Penetration Max . | . . . Secondary Targets 1 | . 1 . Max Gunslinging Chain 1 | . 1 . Shots Hit Robots 37 | . 26 11 Core Hits 12 | . 9 3 Critical Kills . | . . . Critical Parts Destroyed . | . . . Critical Strikes 3 | . 1 2 Burn 3 | . 1 2 Melee Attacks 2 | . . 2 Impact 2 | . . 2 Slashing . | . . . Piercing . | . . . Sneak Attacks . | . . . Combat Hostiles . | . . . Follow-up Attacks . | . . . Damage Inflicted 513 | . 334 179 Guns 489 | . 334 155 Cannons . | . . . Explosions . | . . . Melee 24 | . . 24 Ramming . | . . . Kinetic 214 | . 160 54 Thermal 275 | . 174 101 Explosive . | . . . Electromagnetic . | . . . Impact 24 | . . 24 Slashing . | . . . Piercing . | . . . Highest Corruption . | . . . Average Corruption . | . . . Corruption Purged . | . . . Corruption Blocked . | . . . Overload Shots . | . . . Overflow Damage . | . . . Projectiles . | . . . Explosions . | . . . Melee . | . . . Knockbacks . | . . . Impact . | . . . Kinetic . | . . . Secondary . | . . . Self-Inflicted Damage . | . . . Shots . | . . . Rammed . | . . . Targets Rammed . | . . . Kicked . | . . . Crushed . | . . . Highest Temperature 207 | . 156 207 Average Temperature 67 | . 57 85 Received Heat Transfer 282 | . 75 207 Siege Activations . | . . . Robots Corrupted . | . . . Combat Hostiles . | . . . Parts Fried . | . . . Impact Corruptions . | . . . Robots Melted 1 | . 1 . Combat Hostiles 1 | . 1 . Parts Melted 3 | . 1 2 Heat Transferred 1036 | . 592 444 Parts Sabotaged . | . . . Parts Stolen . | . . . Parts Stripped . | . . . Power Chain Reactions . | . . . Alert | -11 -10 -10 ------- Run | Yrd Mat Min Peak Influence 105 | . 105 53 Initial 28 | . . 28 Average 30 | . 29 37 Maximum Alert Level . | . . . Low Security (%) 100 | 100 100 100 Level 1 . | . . . Level 2 . | . . . Level 3 . | . . . Level 4 . | . . . Level 5 . | . . . High Security . | . . . Max Security . | . . . Squads Dispatched 1 | . 1 . Investigation . | . . . Extermination . | . . . Reinforcement 1 | . 1 . Assault . | . . . Garrison . | . . . Intercept . | . . . Searches Triggered . | . . . Construction Impeded . | . . . Haulers Reinforced . | . . . Active Scanning Responses . | . . . Cargo Convoy Interrupts . | . . . Stealth | -11 -10 -10 --------- Run | Yrd Mat Min Distress Signals 1 | . 1 . Communications Jammed . | . . . Distress Signals . | . . . Times Spotted 14 | . 9 5 Peak Tracking Total 5 | . 4 5 Tactical Retreats . | . . . Traps | -11 -10 -10 ------- Run | Yrd Mat Min Traps Triggered 1 | . 1 . Indirectly . | . . . Trap Hack Attempts . | . . . Triggered . | . . . Disarmed . | . . . Reprogrammed . | . . . Reused . | . . . Traps Extracted . | . . . Installed . | . . . Triggered . | . . . Machines | -11 -10 -10 ---------- Run | Yrd Mat Min Machines Disabled . | . . . Max in Single Turn . | . . . Machines Repaired . | . . . Machines Dismantled . | . . . Machines Sabotaged . | . . . Overloaded Fab Kills . | . . . Hacking | -11 -10 -10 --------- Run | Yrd Mat Min Machines Accessed 5 | . 4 1 Terminals 5 | . 4 1 Fabricators . | . . . Repair Stations . | . . . Recycling Units . | . . . Scanalyzers . | . . . Garrison Access . | . . . Total Hacks 11 | . 9 2 Successful 7 | . 5 2 Failed 4 | . 4 . Catastrophic 1 | . 1 . Database Lockouts . | . . . Manual 8 | . 7 1 Terminals 11 | . 9 2 Fabricators . | . . . Repair Stations . | . . . Recycling Units . | . . . Scanalyzers . | . . . Garrison Access . | . . . Terminal Hacks 2 | . 1 1 Zone Layout 2 | . 1 1 Fabricator Hacks . | . . . Repair Station Hacks . | . . . Recycling Unit Hacks . | . . . Scanalyzer . | . . . Garrison Access Hacks . | . . . Unauthorized Hacks 5 | . 4 1 Terminals 5 | . 4 1 Botnet 5 | . 4 1 Fabricators . | . . . Repair Stations . | . . . Recycling Units . | . . . Scanalyzers . | . . . Garrison Access . | . . . Data Cores Recovered . | . . . Used . | . . . Hacking Detections 3 | . 3 . Full Trace Events 1 | . 1 . Feedback Events . | . . . Feedback Blocked . | . . . Robot Schematics Acquired . | . . . Robots Built . | . . . Authchips . | . . . Time . | . . . Total Robot Build Rating . | . . . Part Schematics Acquired . | . . . Parts Built . | . . . Authchips . | . . . Time . | . . . Total Part Build Rating . | . . . Parts Repaired . | . . . Time . | . . . Parts Recycled . | . . . Recycled Matter . | . . . Retrieved Matter . | . . . Retrieved Components . | . . . Parts Scanalyzed . | . . . Part Schematics Acquired . | . . . Parts Damaged . | . . . Bothacking | -11 -10 -10 ------------ Run | Yrd Mat Min Used RIF Installer . | . . . Robots Hacked . | . . . Non-combat . | . . . Combat . | . . . Robot Hacks Applied . | . . . Relay Couplers Released . | . . . Fabnet Peak Effective % . | . . . Robots Rewired . | . . . Allies Hacked . | . . . Hacks Repelled . | . . . Allies | -11 -10 -10 -------- Run | Yrd Mat Min Total Allies . | . . . Largest Group . | . . . Highest-Rated Group . | . . . Highest-Rated Ally . | . . . Total Orders . | . . . Ally Attacks . | . . . Total Damage . | . . . Kills . | . . . Allies Corrupted . | . . . Allies Melted . | . . . Intel | -11 -10 -10 ------- Run | Yrd Mat Min Robot Analysis Total . | . . . Derelict Logs Recovered 2 | . . 2 Drone Launches . | . . . Drone Recoveries . | . . . Exploration | -11 -10 -10 ------------- Run | Yrd Mat Min Turns Passed 772 | 49 442 281 Spaces Moved 618 | 31 347 240 Core 19 | 18 . 1 Treads 4 | . . 4 Legs . | . . . Wheels 595 | 13 347 235 Hover . | . . . Flight . | . . . Fastest Speed 50 | 50 90 95 Average Speed 103 | 118 104 100 Slowest Speed 450 | 250 105 450 Overloaded Moves . | . . . Propulsion Burnouts . | . . . Robots Hopped . | . . . Cave-ins Triggered . | . . . Exploration Rate (%) 41 | 4 65 54 Regions Visited 2 Branch Regions 1 Pre-discovered Areas 1 | . . 1 Known Exits Taken 1 | . 1 . Unknown Exits Taken 1 | 1 . . Scrap Searched 2 | . . 2 Spaces Dug . | . . . Terrain Destroyed . | . . . Melee . | . . . Projectile . | . . . AOE . | . . . Terrain Rammed . | . . . Walls Destroyed . | . . . Machines Disabled . | . . . Actions | -11 -10 -10 --------- Run | Yrd Mat Min Total 684 | 41 382 261 Wait 5 | . 5 . Move 616 | 30 346 240 Hop . | . . . Pick Up 11 | 5 4 2 Fast Attach 9 | 4 4 1 Attach 3 | 2 . 1 Detach . | . . . Swap 3 | . . 3 Drop 2 | . 1 1 Fire 33 | . 22 11 Melee 2 | . . 2 Ram . | . . . Kick . | . . . Crush . | . . . Escape Stasis . | . . . Rewire . | . . . Trap . | . . . Miscellaneous . | . . . Route ------- -11/Scrapyard -10/Materials (discovered 3 exits: *Mat x2 / *Min) -10/Mines (discovered 1 exit: Mat) History --------- Turn | Location | Event 2 | -11/Scrapyard | Met Revision 17 39 | -11/Scrapyard | Discovered new exit (range 12) 50 | -11/Scrapyard | Entered Materials 180 | -10/Materials | Discovered new exit (range 16) 194 | -10/Materials | Identified exit to Materials 278 | -10/Materials | Discovered exit to Materials (range 11) 304 | -10/Materials | Build established: Mutant 341 | -10/Materials | Discovered new exit (range 16) 490 | -10/Materials | Identified exit to Mines 492 | -10/Materials | Entered Mines 508 | -10/Mines | Learned location of Zion (-6) 754 | -10/Mines | Core integrity fell below 50% 767 | -10/Mines | Core integrity fell below 20% 773 | -10/Mines | Destroyed by S-10 Pest with Light Assault Rifle Last Messages --------------- 00750_ Y-45 Defender heat damages core (-6). 00750_ Critical hit (Burn: +37). 00751_ Y-45 Defender heat damages Lgt. Treads, Lgt. Treads, Lgt. Armor Plating, Hvy. Assault Rifle. 00752_ Y-45 Defender heat spikes uncontrollably. 00753_ Y-45 Defender heat damages Lgt. Treads, Lgt. Armor Plating, Lgt. Treads. 00753_ Y-45 Defender suffers critical hit (Burn). 00753_ Beam Rifle melted. 00753_ Heat Sink melted. 00753_ Y-45 Defender destroyed. 00758_ Acquired 20 matter. 00759_ Machine disabled. 00762_ Med. Laser destroyed. 00765_ Acquired Hammer. 00769_ Lgt. Treads destroyed. 00772_ Machine disabled. 00772_ Lgt. Ion Engine destroyed. Map ----- +----------------------------------------------------+ | #??# #???#???????????????????????????????????????? | | #??# #??##???????????????????????????????????????? | | #??# #??# ???????????????????????????????????????? | | #??# #### ???????????????????????????????????????? | | #??# ???????????????????????????????????????? | | #??#######???????????????????????????????????????? | | #????????????????????????????????????????????????? | | ##???????????????????????????????????????????????? | | ##?????????????????????????###??????????????????? | | #????????????????????????# ##?????????????????? | | #???????????????????????? #?????????????????? | | ##???????????????????????? ??????????????????? | | ##????????????????????????? ??????????????????? | | #?????????????????????????? #??????????????????? | | ##?????????????????????????# #??????????????????? | | ##????????????????????????# #??????????????????? | | ##???????????????????????# #??????????????????? | | #???????????????????????# #??????????????????? | | ##??????????????#########% #??????????????????? | | ##?????????????# !#??????????????????? | | #?????????????# ####### #??????????????????? | | #?????????????# #?##### ##?????????????????? | | #?????????????# ###" ## ###???????????????? | | ##????????##### ##" Y# ##??????????????? | | # ##???????# ##|! ss #??????????????? | | ### #####???# ######! @ s #????????????? | | ??## ##??# #????# " # #???????????? | | ???## ##?# #????##" ## #???????????? | | ###?## ### #?????###### ##???????????? | | ##?## #???????????#### ##????????????? | | #?## ######??????????????? #?????????????? | | #?# ##????????????????????? #?????????????? | | #??# ##????????????????????? #?????????????? | | ##??## #??????????????????????#?????????????? | | #???## ########?????????????????????????????? | | ##?## #?????????????????????????????? | | ### #?????????????????????????????? | | ###### #######???????????????????????? | | ##????# #???????????????????????? | | ##?????# #???????????????????????? | | ##???########### ##??????????????????????? | | #??## ##???## ###????????????????????? | | #?## ##??# ##???????????????????? | | #######![#?# #??# #???????????????????? | | ?????## %### #### #???????????????????? | | ????## !=## ## #???????????????????? | | ??### ## #???????????????????? | | ?## ## ##### #???????????????????? | | ## ###### ##???# #???????????????????? | | ## ##????#####???? ##???????????????????? | +----------------------------------------------------+ Best States ------------- Heat Dissipation 25 Energy Generation 10 Energy Capacity 250 Matter Stores 300 Matter Capacity 300 Sight Range 16 Terrain Scan Density 10 Evasion (%) 50 Recoil Reduction 1 Item Schematics ----------------- None Robot Schematics ------------------ None Fabricated ------------ Nothing Alien Tech Used ----------------- None Achievements -------------- None Challenges ------------ None Game ------ Seed TrackerLinkedSubcomponent Manual? 0 Play Time 00:12:07 Cumulative 32.2 hours Start 2024.07.10 @ 09:15:58 End 2024.07.10 @ 09:28:51 Sessions 1 Manual Loads 0 Difficulty Rogue Special Mode None Game No. 45 Rogue 45 Adventurer 0 Explorer 0 Win Type - Total 0 Types 0/0/0/0/0/0/0/0/0 Lore% 17 Gallery% 26 Achievement% 22 Wizard Run 0 Options --------- Layout 2 ASCII 0 Keyboard 0 Movement Mouse Keybinds 0 Fullscreen 2 Font 24/Crisp Map View 50x44 Zoom Use 0% Tactical HUD 1 Map Filters NONE Filters NONE Steam 1 RUN: c64f6552-0acb-4ff9-a51d-fc47b9c7a684